bitfinex/quotes_SOLUSD_20250206
["timestamp","ask_amount","ask_price","bid_price","bid_amount"]
[1738879290426,12.91686924,193.61,193.53,0.0001]
[1738879291500,30.0,193.68,193.53,0.0001]
[1738879291828,0.12549,193.67,193.53,0.0001]
[1738879292199,30.0,193.66,193.53,0.0001]
[1738879292398,0.12549,193.63,193.53,0.0001]
[1738879293206,0.37647,193.63,193.53,0.0001]
[1738879295817,0.25098,193.56,193.53,0.0001]
[1738879296119,13.66282853,193.56,193.53,0.0001]
[1738879296700,30.25098,193.54,193.53,0.0001]
[1738879296910,43.66282853,193.54,193.53,0.0001]
[1738879297134,43.78831853,193.54,193.53,0.0001]
[1738879298414,44.78831853,193.54,193.53,0.0001]
[1738879299601,43.78831853,193.54,193.53,0.0001]
[1738879300797,32.070944,193.57,193.53,0.0001]
[1738879301015,30.0,193.57,193.44,0.063]
[1738879301208,13.78831853,193.56,193.44,0.063]
[1738879302321,13.78831853,193.56,193.46,20.0]
[1738879303093,7.63237247,193.61,193.46,20.0]
[1738879303094,30.0,193.61,193.46,20.0]
[1738879303301,31.5938,193.63,193.47,6.2598]
[1738879303502,0.03,193.63,193.5,20.0]
[1738879303932,0.03,193.63,193.51,20.12549]
[1738879304140,0.03,193.63,193.55,20.0]
[1738879304835,0.03,193.63,193.57,20.0]
[1738879305210,0.03,193.63,193.61,20.0]
[1738879305517,0.03,193.63,193.61,26.6295]
[1738879305714,0.03,193.77,193.65,20.0]
[1738879306116,0.03,193.77,193.66,5.1636]
[1738879306719,0.03,193.77,193.69,20.0]
[1738879307226,0.03,193.77,193.65,20.0]
[1738879307561,0.03,193.77,193.66,20.0]
[1738879307920,0.25098,193.76,193.66,20.0]
[1738879308818,0.03,193.77,193.66,20.0]
[1738879309332,0.28098,193.77,193.64,20.0]
[1738879309520,0.03,193.77,193.66,20.0]
[1738879310077,0.28098,193.77,193.66,20.0]
[1738879310225,30.12549,193.76,193.61,6.6295]
[1738879310419,0.25098,193.74,193.61,11.7943]
[1738879311023,0.12549,193.71,193.61,6.6295]
[1738879311227,0.12549,193.71,193.55,5.1666]
[1738879312058,0.12549,193.71,193.58,20.0]
[1738879312359,0.12549,193.71,193.58,25.1657]
[1738879312922,13.41184853,193.73,193.58,38.0802]
[1738879313128,30.03,193.77,193.59,0.12549]
[1738879313424,13.78831853,193.74,193.59,0.12549]
[1738879313632,13.78831853,193.74,193.55,0.96307893]
[1738879313633,43.78831853,193.7,193.55,0.063]
[1738879313843,43.78831853,193.7,193.56,5.1663]
[1738879314339,43.78831853,193.7,193.59,20.0]
[1738879314857,0.25098,193.64,193.55,0.063]
[1738879315224,0.25098,193.64,193.56,20.0]
[1738879317328,30.0,193.68,193.55,5.2296]
[1738879317726,13.78831853,193.67,193.55,5.2296]
[1738879318147,13.78831853,193.67,193.55,0.063]
[1738879318345,13.78831853,193.64,193.55,0.063]
[1738879318645,0.25098,193.61,193.55,0.063]
[1738879319555,0.25098,193.58,193.55,0.063]
[1738879320046,30.0,193.61,193.55,0.063]
[1738879320228,13.78831853,193.6,193.55,0.063]
[1738879320635,20.0,193.62,193.55,0.063]
[1738879320833,30.0,193.63,193.55,0.063]
[1738879321146,0.25098,193.57,193.55,0.063]
[1738879321352,0.12549,193.58,193.55,0.063]
[1738879321669,31.5118,193.68,193.55,0.063]
[1738879321826,30.0,193.66,193.55,0.063]
[1738879322154,13.78831853,193.65,193.55,0.063]
[1738879323042,0.25098,193.61,193.55,0.063]
[1738879323352,0.25098,193.59,193.55,0.063]
[1738879323554,30.0,193.64,193.55,0.063]
[1738879323939,13.78831853,193.63,193.55,0.063]
[1738879324246,20.0,193.63,193.55,0.063]
[1738879324653,0.03,193.65,193.55,0.063]
[1738879325839,0.25098,193.64,193.55,0.063]
[1738879326641,0.03,193.65,193.57,20.0]
[1738879327449,33.78831853,193.63,193.55,0.063]
[1738879327651,63.78831853,193.63,193.55,0.063]
[1738879327833,13.78831853,193.58,193.55,0.063]
[1738879328448,20.0,193.57,193.55,0.063]
[1738879328636,30.0,193.61,193.55,0.063]
[1738879328831,30.0,193.63,193.55,0.063]
[1738879329036,20.0,193.6,193.55,0.063]
[1738879329447,82.1,193.66,193.55,0.063]
[1738879329640,30.0,193.67,193.55,0.063]
[1738879329952,30.0,193.7,193.57,20.0]
[1738879330156,30.0,193.72,193.57,20.0]
[1738879330340,36.1248,193.74,193.58,20.0]
[1738879330538,33.53733853,193.71,193.58,20.0]
[1738879331045,0.25098,193.7,193.58,20.0]
[1738879331632,0.25098,193.67,193.58,20.0]
[1738879331848,0.25098,193.67,193.58,25.1658]
[1738879332261,20.0,193.7,193.58,25.1658]
[1738879332440,30.0,193.71,193.58,25.1658]
[1738879332748,13.78831853,193.7,193.58,25.1658]
[1738879333932,20.25098,193.7,193.58,25.1658]
[1738879334138,31.564,193.75,193.58,25.1658]
[1738879334661,0.37647,193.69,193.58,20.0]
[1738879334861,0.37647,193.69,193.58,25.1657]
[1738879336039,43.41184853,193.72,193.58,25.1657]
[1738879336556,1.564,193.75,193.59,0.12549]
[1738879336758,0.03,193.77,193.66,20.0]
[1738879337849,0.03,193.77,193.7,20.0]
[1738879338245,0.03,193.77,193.72,20.0]
[1738879339440,0.03,193.77,193.73,5.1618]
[1738879340173,0.03,193.77,193.72,20.0]
[1738879340466,0.03,193.77,193.69,6.3904]
[1738879340759,0.03,193.77,193.69,11.5531]
[1738879341148,0.03,193.77,193.72,20.0]
[1738879342250,0.03,193.77,193.72,25.162]
[1738879343337,0.03,193.77,193.72,20.0]
[1738879343542,0.03,193.77,193.73,20.0]
[1738879344962,0.03,193.77,193.64,14.511]
[1738879345152,0.12549,193.76,193.63,5.1644]
[1738879345641,0.12549,193.76,193.66,20.0]
[1738879346059,0.12549,193.76,193.63,5.1644]
[1738879346262,0.12549,193.71,193.58,5.1658]
[1738879346463,0.25098,193.69,193.57,6.0568]
[1738879346664,0.25098,193.69,193.57,11.2228]
[1738879347362,0.25098,193.69,193.6,20.0]
[1738879347574,30.0,193.74,193.6,20.0]
[1738879347768,30.0,193.71,193.57,6.0568]
[1738879347950,13.78831853,193.7,193.57,11.2226]
[1738879348150,20.0,193.72,193.57,11.2226]
[1738879348474,0.25098,193.71,193.6,20.0]
[1738879349066,0.25098,193.71,193.63,0.063]
[1738879349891,31.6465,193.75,193.63,0.063]
[1738879350070,1.6465,193.75,193.64,20.0]
[1738879350255,0.25098,193.74,193.64,20.0]
[1738879350949,1.6465,193.75,193.64,20.0]
[1738879351180,0.03,193.77,193.65,20.12549]
[1738879351386,0.03,193.77,193.68,0.12549]
[1738879351689,0.03,193.77,193.68,14.43703093]
[1738879351852,0.03,193.77,193.68,13.66282853]
[1738879352271,0.03,193.77,193.67,20.7741144]
[1738879352617,0.03,193.77,193.67,20.0]
[1738879353066,0.03,193.77,193.68,5.1631]
[1738879353758,0.03,193.77,193.71,20.0]
[1738879354588,0.03,193.77,193.75,20.0]
[1738879355165,0.03,193.77,193.74,25.1613]
[1738879356262,0.03,193.77,193.71,6.5523]
[1738879356706,0.03,193.77,193.74,20.0]
[1738879357378,0.03,193.77,193.75,20.0]
[1738879358623,0.03,193.77,193.69,5.1628]
[1738879358922,0.03,193.77,193.66,6.93790594]
[1738879359110,0.03,193.77,193.67,13.78831853]
[1738879359413,0.03,193.77,193.7,20.0]
[1738879359707,0.28098,193.77,193.64,5.1639]
[1738879360077,0.12549,193.76,193.63,0.063]
[1738879360379,13.66282853,193.73,193.63,0.063]
[1738879360900,0.12549,193.7,193.63,0.063]
[1738879361112,0.25098,193.69,193.63,0.063]
[1738879362631,1.514,193.74,193.63,0.063]
[1738879363192,1.514,193.74,193.63,0.18849]
[1738879363810,13.66282853,193.78,193.63,0.18849]
[1738879364016,6.5226,193.79,193.67,0.12549]
[1738879364221,1.514,193.8,193.71,20.0]
[1738879365420,0.28098,193.83,193.72,20.0]
[1738879366333,0.03,193.83,193.72,20.0]
[1738879366540,0.03,193.83,193.73,0.12549]
[1738879366919,0.03,193.83,193.76,20.0]
[1738879367232,0.03,193.83,193.8,20.0]
[1738879367433,0.03,193.83,193.8,25.1597]
[1738879368007,0.03,193.83,193.81,0.12549]
[1738879368343,0.03,193.83,193.81,13.66282853]
[1738879369044,0.03,193.83,193.82,5.1594]
[1738879369340,0.03,193.83,193.82,5.28489]
[1738879369718,0.03,193.83,193.82,19.82222853]
[1738879369936,0.03,193.83,193.82,19.94771853]
[1738879370434,0.03,193.83,193.82,18.82222853]
[1738879370836,0.03,193.83,193.75,1.77377064]
[1738879371141,0.03,193.83,193.77,13.78831853]
[1738879371306,0.03,193.83,193.8,20.0]
[1738879372204,0.03,193.83,193.77,13.78831853]
[1738879372401,0.03,193.83,193.81,13.66282853]
[1738879372609,0.03,193.83,193.76,19.0635]
[1738879372801,0.03,193.83,193.76,18.83734555]
[1738879373022,0.03,193.83,193.77,20.0]
[1738879373419,0.03,193.83,193.79,20.0]
[1738879373611,0.03,193.83,193.81,5.1596]
[1738879374200,0.03,193.83,193.82,0.12549]
[1738879374398,0.03,193.85,193.84,20.12549]
[1738879374621,0.03,193.85,193.84,33.78831853]
[1738879375010,0.03,193.85,193.84,20.12549]
[1738879375909,0.03,193.85,193.84,25.28429]
[1738879376533,0.03,193.85,193.84,38.82162853]
[1738879378321,0.03,193.85,193.84,25.1588]
[1738879378706,0.0001,193.85,193.84,39.94711853]
[1738879378908,0.0001,193.85,193.84,41.84625985]
[1738879380619,0.03,193.97,193.91,0.37647]
[1738879380824,0.03,193.97,193.96,20.0]
[1738879381118,0.03,193.97,193.88,0.77313699]
[1738879381320,0.03,193.97,193.84,18.056]
[1738879381515,0.03,193.97,193.84,19.056]
[1738879381725,0.03,193.97,193.85,0.77352136]
[1738879381923,0.03,193.97,193.88,20.12549]
[1738879382308,1.5394,193.96,193.8,14.67268885]
[1738879382508,1.5394,193.96,193.82,18.83157143]
[1738879382715,1.5394,193.96,193.89,20.0]
[1738879382930,0.03,193.97,193.89,20.0]
[1738879383742,0.03,193.97,193.93,20.0]
[1738879385131,0.03,193.97,193.91,20.0]
[1738879385525,0.03,193.96,193.91,20.0]
[1738879385727,0.03,193.96,193.85,0.063]
[1738879386039,0.03,193.96,193.89,20.0]
[1738879387542,0.03,193.96,193.9,5.1572]
[1738879388134,0.03,193.96,193.89,25.1575]
[1738879388350,6.0588,193.95,193.85,0.063]
[1738879388841,1.5186,193.94,193.85,0.063]
[1738879389016,0.12549,193.91,193.85,0.063]
[1738879389214,1.5186,193.94,193.85,0.063]
[1738879389644,13.78831853,193.93,193.85,0.063]
[1738879389954,0.12549,193.88,193.85,0.063]
[1738879390123,0.12549,193.88,193.77,0.063]
[1738879390124,13.78831853,193.88,193.77,0.063]
[1738879391432,30.0,193.91,193.77,0.063]
[1738879391651,4.6,193.92,193.77,0.063]
[1738879391857,13.78831853,193.91,193.77,0.063]
[1738879392454,0.12549,193.88,193.77,0.063]
[1738879393155,13.78831853,193.91,193.77,0.063]
[1738879393458,0.12549,193.91,193.77,0.18849]
[1738879393621,1.5186,193.94,193.8,0.12549]
[1738879394037,1.5186,193.94,193.79,33.53733853]
[1738879394467,1.5186,193.94,193.84,20.0]
[1738879395566,1.5186,193.94,193.81,20.0]
[1738879397139,1.5186,193.94,193.81,20.77382365]
[1738879397360,1.5186,193.94,193.81,20.0]
[1738879397982,0.12549,193.93,193.81,20.0]
[1738879398346,13.78831853,193.93,193.81,20.0]
[1738879398535,0.12549,193.91,193.81,20.0]
[1738879399068,0.12549,193.91,193.8,0.063]
[1738879399069,0.12549,193.91,193.82,20.0]
[1738879399257,0.12549,193.91,193.8,0.063]
[1738879399455,0.12549,193.89,193.8,0.063]
[1738879399973,0.12549,193.91,193.8,0.063]
[1738879400263,13.53733853,193.89,193.8,0.063]
[1738879400849,13.41184853,193.91,193.8,0.063]
[1738879401155,13.41184853,193.89,193.8,0.063]
[1738879401975,0.12549,193.88,193.8,0.063]
[1738879402176,0.12549,193.85,193.8,0.063]
[1738879402345,0.12549,193.83,193.8,0.063]
[1738879402551,6.3988,193.84,193.8,0.063]
[1738879402859,30.0,193.84,193.77,0.063]
[1738879403067,30.0,193.8,193.77,0.0001]
[1738879403252,0.25098,193.76,193.65,0.063]
[1738879403458,0.12549,193.75,193.65,0.063]
[1738879403785,30.25098,193.76,193.65,0.063]
[1738879403786,0.25098,193.74,193.65,0.063]
[1738879404087,0.25098,193.71,193.65,0.063]
[1738879405052,0.25098,193.69,193.65,0.063]
[1738879405391,0.25098,193.67,193.65,0.063]
[1738879405688,0.25098,193.67,193.65,0.0001]
[1738879405689,8.07967,193.66,193.65,0.0001]
[1738879405858,8.07967,193.66,193.63,0.063]
[1738879405859,0.25098,193.64,193.63,0.063]
[1738879406787,43.78831853,193.64,193.63,0.0001]
[1738879407086,7.82869,193.66,193.61,0.063]
[1738879407087,37.7032,193.66,193.61,0.063]
[1738879407500,13.78831853,193.65,193.61,0.063]
[1738879407658,7.7032,193.66,193.61,0.063]
[1738879408382,1.513,193.66,193.61,0.063]
[1738879408876,6.2547,193.71,193.61,0.063]
[1738879409082,30.12549,193.69,193.61,0.063]
[1738879409271,0.25098,193.67,193.61,0.063]
[1738879409599,6.2547,193.71,193.61,0.063]
[1738879410095,0.25098,193.68,193.61,0.063]
[1738879410391,6.2547,193.71,193.61,0.063]
[1738879410573,13.78831853,193.7,193.61,20.063]
[1738879412498,0.25098,193.67,193.61,0.063]
[1738879412664,13.53733853,193.68,193.61,0.063]
[1738879412665,0.37647,193.62,193.61,0.063]
[1738879412869,0.37647,193.62,193.57,0.063]
[1738879412870,43.78831853,193.62,193.57,0.063]
[1738879413186,0.12549,193.59,193.57,0.063]
[1738879413385,1.5486,193.61,193.57,0.063]
[1738879413970,0.25098,193.58,193.57,0.063]
[1738879414168,30.25098,193.56,193.44,0.063]
[1738879414365,0.25098,193.51,193.44,0.063]
[1738879414567,0.12549,193.5,193.44,0.063]
[1738879414786,0.25098,193.49,193.44,0.063]
[1738879416582,30.0,193.52,193.44,0.063]
[1738879417199,13.78831853,193.51,193.44,0.063]
[1738879417805,13.78831853,193.48,193.44,0.063]
[1738879418286,13.78831853,193.46,193.44,0.063]
[1738879419911,51.38153104,193.46,193.44,0.063]
[1738879420282,43.78831853,193.45,193.44,0.063]
[1738879420606,81.38153104,193.45,193.44,0.063]
[1738879421891,37.84419251,193.45,193.44,0.063]
[1738879422084,37.59321251,193.45,193.44,0.063]
[1738879423799,37.59321251,193.47,193.44,0.063]
[1738879423977,37.59321251,193.48,193.44,0.063]
[1738879425014,37.59321251,193.52,193.45,37.59321251]
[1738879425175,37.59321251,193.53,193.45,37.59321251]
[1738879425498,37.59321251,193.51,193.45,5.1692]
[1738879425800,37.59321251,193.52,193.45,5.1692]
[1738879426109,37.59321251,193.51,193.45,5.1692]
[1738879426689,37.59321251,193.54,193.47,42.76171251]
[1738879426998,37.59321251,193.57,193.5,57.59321251]
[1738879427211,37.59321251,193.57,193.5,20.0]
[1738879427722,37.59321251,193.58,193.5,57.59321251]
[1738879428019,37.59321251,193.58,193.51,5.1676]
[1738879428321,37.59321251,193.57,193.51,5.1676]
[1738879428615,37.59321251,193.58,193.54,20.0]
[1738879428821,37.65621251,193.62,193.54,57.59321251]
[1738879429100,37.59321251,193.59,193.55,20.0]
[1738879429310,37.59321251,193.6,193.55,20.0]
[1738879430080,37.59321251,193.6,193.48,2.77499154]
[1738879430081,37.59321251,193.56,193.48,37.59321251]
[1738879430285,37.59321251,193.57,193.52,20.0]
[1738879430594,37.59321251,193.57,193.53,20.0]
[1738879430805,37.59321251,193.54,193.5,20.0]
[1738879431177,0.063,193.62,193.51,20.0]
[1738879431178,37.59321251,193.56,193.51,20.0]
[1738879431417,37.59321251,193.57,193.5,37.59321251]
[1738879432099,37.59321251,193.57,193.51,5.1676]
[1738879432712,37.59321251,193.58,193.54,20.0]
[1738879433020,37.65621251,193.62,193.55,37.59321251]
[1738879433229,0.063,193.62,193.56,37.59321251]
[1738879433530,0.063,193.62,193.58,37.59321251]
[1738879433832,0.063,193.62,193.61,37.59321251]
[1738879434000,0.063,193.62,193.61,42.75821251]
[1738879434200,0.063,193.62,193.61,5.165]
[1738879434712,37.65621251,193.62,193.55,6.2739]
[1738879435011,37.59321251,193.58,193.54,5.1666]
[1738879435196,37.65621251,193.58,193.52,5.1672]
[1738879435391,37.59321251,193.57,193.52,5.1672]
[1738879435612,37.65621251,193.58,193.55,20.0]
[1738879435816,37.65621251,193.58,193.57,20.0]
[1738879435817,0.063,193.58,193.57,20.0]
[1738879436922,0.063,193.58,193.57,25.166]
[1738879437307,0.063,193.58,193.56,20.0]
[1738879437824,37.59321251,193.57,193.45,11.4731]
[1738879438122,0.31398,193.58,193.48,20.0]
[1738879438424,37.59321251,193.51,193.48,20.0]
[1738879439000,37.59321251,193.5,193.45,11.4731]
[1738879439198,37.59321251,193.48,193.45,0.03]
[1738879439714,37.59321251,193.49,193.45,20.03]
[1738879439916,37.59321251,193.49,193.45,0.03]
[1738879440328,37.59321251,193.48,193.45,0.03]
[1738879441715,37.59321251,193.51,193.45,0.03]
[1738879442104,37.59321251,193.46,193.45,0.03]
[1738879442519,51.25604104,193.46,193.45,0.03]
[1738879442702,13.66282853,193.45,193.44,0.063]
[1738879442901,51.38153104,193.45,193.44,0.0001]
[1738879443127,20.0,193.42,193.41,0.063]
[1738879443322,108.84925355,193.42,193.41,0.063]
[1738879443805,138.97474355,193.42,193.41,0.063]
[1738879444010,138.97474355,193.42,193.35,0.063]
[1738879444011,0.12549,193.37,193.35,0.063]
[1738879444227,51.38153104,193.36,193.35,0.063]
[1738879444905,37.71870251,193.36,193.35,0.063]
[1738879445122,51.38153104,193.36,193.35,0.063]
[1738879445329,51.25604104,193.36,193.35,0.063]
[1738879445534,37.71870251,193.36,193.35,0.063]
[1738879445902,51.25604104,193.36,193.35,0.063]
[1738879446108,51.38153104,193.36,193.35,0.063]
[1738879446844,37.59321251,193.36,193.35,0.063]
[1738879447358,51.25604104,193.36,193.35,0.063]
[1738879448323,51.38153104,193.36,193.35,0.063]
[1738879450256,13.66282853,193.28,193.25,0.03]
[1738879450432,13.66282853,193.28,193.15,0.03]
[1738879450433,20.0,193.22,193.15,0.03]
[1738879450638,37.59321251,193.16,193.15,0.03]
[1738879451638,37.59321251,193.2,193.15,0.03]
[1738879451810,37.59321251,193.18,193.15,0.03]
[1738879452009,37.59321251,193.17,193.15,0.03]
[1738879452229,37.71870251,193.16,193.15,0.03]
[1738879453231,0.12549,193.15,193.0,38.90944337]
[1738879453533,37.59321251,193.07,193.04,20.0]
[1738879454241,37.59321251,193.05,192.99,5.1813]
[1738879454429,37.59321251,193.1,192.95,49.29461251]
[1738879454430,37.59321251,193.02,192.95,49.29461251]
[1738879454622,37.59321251,193.02,192.95,11.7014]
[1738879454824,37.59321251,193.02,192.95,49.29461251]
[1738879455030,37.59321251,193.0,192.93,37.59321251]
[1738879455337,0.12549,193.02,192.89,5.1843]
[1738879455548,37.59321251,192.92,192.84,37.59321251]
[1738879455720,37.59321251,192.91,192.85,5.1851]
[1738879455920,37.59321251,192.91,192.88,20.0]
[1738879456221,37.59321251,192.91,192.81,6.4434]
[1738879456222,37.59321251,192.89,192.81,6.4434]
[1738879456413,37.59321251,192.94,192.86,37.59321251]
[1738879456625,37.59321251,192.93,192.88,20.0]
[1738879456820,37.59321251,192.94,192.88,20.0]
[1738879457047,37.59321251,192.94,192.88,5.1843]
[1738879457221,37.59321251,192.95,192.88,5.1843]
[1738879457542,37.59321251,192.97,192.89,37.59321251]
[1738879457758,37.59321251,192.91,192.83,42.77911251]
[1738879457949,37.59321251,192.91,192.84,37.59321251]
[1738879458121,37.59321251,193.0,192.87,57.59321251]
[1738879458830,37.59321251,192.98,192.9,42.77721251]
[1738879459016,37.59321251,193.0,192.93,37.59321251]
[1738879459343,44.74251251,193.1,192.96,37.59321251]
[1738879459344,37.59321251,193.03,192.96,37.59321251]
[1738879459734,37.59321251,193.02,192.93,20.0]
[1738879459921,0.12549,193.07,192.93,57.59321251]
[1738879459922,37.59321251,193.0,192.93,57.59321251]
[1738879460116,37.59321251,192.99,192.92,37.59321251]
[1738879460335,37.59321251,192.99,192.93,5.1832]
[1738879460847,37.59321251,192.94,192.89,5.1841]
[1738879461143,37.59321251,192.93,192.89,5.1841]
[1738879461522,37.59321251,192.96,192.92,20.0]
[1738879461722,37.59321251,192.98,192.9,37.59321251]
[1738879462440,37.59321251,193.02,192.95,37.59321251]
[1738879463336,37.59321251,193.03,192.98,20.0]
[1738879463533,37.59321251,193.05,192.98,25.1817]
[1738879463732,37.59321251,193.06,192.99,37.59321251]
[1738879464136,37.59321251,193.07,193.0,37.59321251]
[1738879464338,0.12549,193.14,192.98,18.1364]
[1738879464339,37.59321251,193.1,193.03,37.59321251]
[1738879464519,37.59321251,193.11,193.03,37.59321251]
[1738879464938,37.59321251,193.1,193.03,37.59321251]
[1738879465137,37.59321251,193.09,193.04,5.1802]
[1738879465445,37.59321251,193.15,193.07,37.59321251]
[1738879465651,37.59321251,193.12,193.09,20.0]
[1738879465959,30.0,193.24,193.09,20.0]
[1738879466258,31.6483,193.27,193.1,20.90203565]
[1738879466441,31.6483,193.27,193.1,20.12549]
[1738879466641,1.6483,193.27,193.15,20.0]
[1738879466862,1.6483,193.27,193.14,20.0]
[1738879467066,37.59321251,193.23,193.16,37.59321251]
[1738879467522,37.59321251,193.24,193.19,20.0]
[1738879467721,37.59321251,193.25,193.19,20.0]
[1738879467941,37.59321251,193.26,193.19,57.59321251]
[1738879468144,37.59321251,193.25,193.21,20.0]
[1738879468555,37.59321251,193.24,193.2,20.0]
[1738879468764,37.59321251,193.24,193.15,18.1206]
[1738879468765,37.59321251,193.21,193.15,5.1773]
[1738879469044,37.59321251,193.2,193.16,20.0]
[1738879469254,37.59321251,193.24,193.17,37.59321251]
[1738879469438,37.59321251,193.23,193.16,57.59321251]
[1738879469824,37.59321251,193.25,193.18,37.59321251]
[1738879470030,37.59321251,193.25,193.2,20.0]
[1738879470633,37.59321251,193.26,193.2,25.1758]
[1738879470843,0.25098,193.3,193.21,20.0]
[1738879470844,37.59321251,193.25,193.21,20.0]
[1738879471154,37.59321251,193.26,193.21,20.0]
[1738879471359,37.59321251,193.27,193.22,20.0]
[1738879471954,37.59321251,193.26,193.2,5.1758]
[1738879472151,37.59321251,193.3,193.19,20.0]
[1738879472152,37.59321251,193.21,193.19,20.0]
[1738879472660,37.59321251,193.21,193.18,20.0]
[1738879472832,37.59321251,193.25,193.18,20.0]
[1738879473033,37.59321251,193.25,193.2,20.0]
[1738879473234,61.6,193.32,193.24,37.59321251]
[1738879473235,37.59321251,193.32,193.24,37.59321251]
[1738879473432,37.59321251,193.31,193.23,57.59321251]
[1738879473643,37.59321251,193.29,193.22,37.59321251]
[1738879474331,37.59321251,193.29,193.23,5.1751]
[1738879474534,37.59321251,193.33,193.28,20.0]
[1738879475265,37.59321251,193.32,193.24,37.59321251]
[1738879475451,37.59321251,193.29,193.22,5.1753]
[1738879475761,37.59321251,193.28,193.25,20.0]
[1738879475944,37.59321251,193.29,193.25,20.0]
[1738879476341,37.59321251,193.26,193.17,37.59321251]
[1738879476657,37.59321251,193.24,193.17,37.59321251]
[1738879477245,37.59321251,193.25,193.18,37.59321251]
[1738879477553,37.59321251,193.26,193.22,20.0]
[1738879477754,37.59321251,193.3,193.23,37.59321251]
[1738879478255,37.59321251,193.32,193.25,37.59321251]
[1738879478456,37.59321251,193.33,193.26,37.59321251]
[1738879479355,37.59321251,193.33,193.27,5.1741]
[1738879481345,37.59321251,193.23,193.16,43.69131251]
[1738879481544,37.59321251,193.23,193.17,5.1767]
[1738879481759,37.59321251,193.22,193.17,5.1767]
[1738879482567,37.59321251,193.24,193.2,25.1759]
[1738879482768,37.59321251,193.26,193.2,25.1759]
[1738879483065,37.59321251,193.28,193.21,37.59321251]
[1738879483567,37.59321251,193.28,193.24,20.0]
[1738879483760,37.59321251,193.3,193.26,20.0]
[1738879484274,37.59321251,193.29,193.25,20.0]
[1738879484657,37.59321251,193.29,193.25,25.1745]
[1738879485760,37.59321251,193.3,193.25,25.1745]
[1738879487076,37.59321251,193.31,193.25,25.1745]
[1738879489477,37.59321251,193.28,193.25,20.0]
[1738879489675,37.59321251,193.27,193.25,20.0]
[1738879489975,37.59321251,193.27,193.24,20.0]
[1738879490679,37.59321251,193.31,193.24,20.0]
[1738879490875,0.063,193.33,193.27,37.59321251]
[1738879491178,37.65621251,193.33,193.26,37.71870251]
[1738879491671,37.65621251,193.33,193.27,5.1741]
[1738879492077,0.063,193.33,193.27,42.76731251]
[1738879493972,0.063,193.33,193.27,5.1741]
[1738879495089,23.14954943,193.32,193.28,20.0]
[1738879495381,23.14954943,193.32,193.26,5.1743]
[1738879496271,23.21254943,193.33,193.26,23.14954943]
[1738879497470,23.21254943,193.33,193.27,5.1741]
[1738879497805,23.14954943,193.32,193.26,5.1743]
[1738879498153,0.063,193.33,193.29,23.14954943]
[1738879498354,0.063,193.33,193.3,23.14954943]
[1738879498981,0.063,193.33,193.32,36.81237796]
[1738879499362,0.063,193.4,193.35,20.0]
[1738879499557,0.063,193.4,193.36,23.14954943]
[1738879499974,0.063,193.4,193.35,43.14954943]
[1738879500171,0.063,193.4,193.39,20.0]
[1738879500365,23.21254943,193.4,193.33,29.09764599]
[1738879500572,23.14954943,193.37,193.33,5.1725]
[1738879500773,23.14954943,193.36,193.35,20.0]
[1738879501077,23.14954943,193.37,193.35,20.0]
[1738879501578,23.21254943,193.4,193.33,23.14954943]
[1738879501777,0.063,193.4,193.36,20.0]
[1738879501986,23.14954943,193.39,193.32,5.1727]